bitfinex/quotes_ETHUSD_20251011
["timestamp","ask_amount","ask_price","bid_price","bid_amount"]
[1760174237889,2.60749658,3835.1,3834.9,0.6336]
[1760174238088,3.07196192,3835.0,3834.9,0.6336]
[1760174238317,2.6077496,3834.8,3834.0,0.6336]
[1760174238654,2.60764594,3834.9,3834.6,0.6336]
[1760174238851,2.60770246,3834.8,3834.6,0.6336]
[1760174239220,2.60776592,3834.7,3834.6,0.6336]
[1760174239419,3.07216592,3834.7,3834.6,0.6336]
[1760174239735,0.1296,3835.2,3834.6,0.6336]
[1760174239936,0.1306,3835.3,3834.6,0.1296]
[1760174240318,3.07182594,3835.2,3834.7,0.6336]
[1760174240626,0.1306,3835.3,3834.1,0.002]
[1760174240627,0.1296,3835.0,3834.3,0.1296]
[1760174240817,0.1296,3835.0,3834.4,0.6336]
[1760174241143,0.1296,3835.0,3834.1,0.002]
[1760174241144,2.60750631,3835.1,3834.2,0.6336]
[1760174241338,2.60770298,3834.8,3834.2,0.6336]
[1760174241644,2.60763295,3834.9,3834.2,0.6336]
[1760174241843,2.60782306,3834.7,3834.1,0.002]
[1760174242052,2.60783521,3834.6,3834.1,0.6356]
[1760174242256,0.4644,3834.8,3834.1,0.6356]
[1760174242257,0.4644,3834.5,3834.1,0.002]
[1760174242927,3.07196241,3835.0,3834.2,0.6336]
[1760174243146,0.001,3835.3,3834.2,0.6336]
[1760174243314,2.60743731,3835.2,3834.5,0.6336]
[1760174243939,2.60749456,3835.1,3834.5,0.6336]
[1760174244116,2.60758221,3835.0,3834.4,0.6336]
[1760174244545,2.60758221,3835.0,3834.1,0.6356]
[1760174244868,2.60763893,3834.9,3834.3,0.6336]
[1760174245231,3.07203893,3834.9,3834.3,0.6336]
[1760174245425,0.4644,3834.9,3834.4,0.6336]
[1760174245732,2.60757261,3835.0,3834.4,0.6336]
[1760174245939,0.4644,3835.0,3834.1,0.6356]
[1760174246153,0.001,3835.3,3834.1,0.6356]
[1760174246332,0.001,3835.3,3834.5,0.6336]
[1760174246532,2.60742594,3835.2,3834.5,0.6336]
[1760174246762,2.60750164,3835.1,3834.5,0.6336]
[1760174246929,2.60743648,3835.2,3834.5,3.2414943]
[1760174247230,2.60744531,3835.2,3834.6,0.6336]
[1760174247552,2.60744531,3835.2,3834.2,2.60808669]
[1760174247553,3.07195263,3835.1,3834.3,3.24163372]
[1760174247853,0.4644,3835.1,3834.3,0.6336]
[1760174248147,0.4644,3835.1,3834.5,0.6336]
[1760174248148,3.07189447,3835.1,3834.5,0.6336]
[1760174248355,0.4644,3835.1,3834.3,0.6336]
[1760174248857,2.60756192,3835.0,3834.3,0.6336]
[1760174249149,2.60766,3834.9,3834.3,0.6336]
[1760174249352,2.60766,3834.9,3834.2,0.6336]
[1760174249661,2.60766,3834.9,3834.2,3.24169473]
[1760174250632,2.60766,3834.9,3834.2,0.6336]
[1760174250957,2.60790194,3834.5,3834.4,0.1296]
[1760174251531,0.4644,3834.5,3834.4,0.7632]
[1760174251969,3.07230194,3834.5,3834.4,0.7632]
[1760174252873,3.07230194,3834.5,3834.4,0.1296]
[1760174253033,2.60810599,3834.2,3834.1,0.002]
[1760174253532,3.07250599,3834.2,3834.1,0.002]
[1760174254829,0.4644,3834.2,3834.1,0.002]
[1760174255752,3.07250599,3834.2,3834.1,0.002]
[1760174256944,4.99250599,3834.2,3834.1,0.002]
[1760174258756,3.07250599,3834.2,3834.1,0.002]
[1760174260359,4.52837811,3833.8,3833.7,1e-08]
[1760174260765,4.95957811,3833.8,3833.7,1e-08]
[1760174261075,2.60858223,3833.5,3830.0,1.18238601]
[1760174261280,2.60858223,3833.5,3830.8,1.92]
[1760174261281,4.52858223,3833.5,3830.8,1.92]
[1760174261482,4.95978223,3833.5,3831.0,2.61028233]
[1760174261653,4.95978223,3833.5,3831.1,0.02610214]
[1760174262046,4.95978223,3833.5,3831.2,0.6336]
[1760174262558,4.95978223,3833.5,3831.1,0.6336]
[1760174262741,4.95978223,3833.5,3830.8,0.6336]
[1760174262944,4.95978223,3833.5,3830.8,3.24401465]
[1760174263144,4.95978223,3833.5,3830.2,0.4455]
[1760174263390,4.95978223,3833.5,3830.2,2.61079051]
[1760174263680,4.95978223,3833.5,3830.6,1.92]
[1760174263892,4.95978223,3833.5,3830.7,0.6336]
[1760174264247,4.95978223,3833.5,3830.6,0.6336]
[1760174264659,4.95978223,3833.5,3830.8,0.6336]
[1760174265048,4.95978223,3833.5,3830.6,0.6336]
[1760174265447,4.95978223,3833.5,3830.4,0.6336]
[1760174265670,4.95978223,3833.5,3831.3,0.6336]
[1760174265875,4.95978223,3833.5,3831.1,0.6336]
[1760174266183,4.95978223,3833.5,3831.8,0.6336]
[1760174266555,4.95978223,3833.5,3830.7,1.92]
[1760174266556,3.03978223,3833.5,3831.4,0.6336]
[1760174266760,3.03978223,3833.5,3832.3,0.6336]
[1760174267158,3.03978223,3833.5,3831.7,0.6336]
[1760174267478,3.03978223,3833.5,3831.1,0.6336]
[1760174267867,3.03978223,3833.5,3831.4,3.24354437]
[1760174268045,3.03978223,3833.5,3831.0,1.92]
[1760174268046,3.03978223,3833.5,3831.7,0.6336]
[1760174268894,3.03978223,3833.5,3832.5,0.6336]
[1760174269178,3.03978223,3833.5,3832.2,0.6336]
[1760174269352,4.95978223,3833.5,3832.4,0.6336]
[1760174269687,4.95978223,3833.5,3832.1,3.24312241]
[1760174269851,4.95978223,3833.5,3832.3,0.6336]
[1760174270047,4.95978223,3833.5,3832.8,0.6336]
[1760174271383,4.95978223,3833.5,3831.6,2.60981871]
[1760174271560,4.95978223,3833.5,3831.7,0.6336]
[1760174271983,4.95978223,3833.5,3831.6,0.6336]
[1760174272297,4.95978223,3833.5,3830.9,0.4661]
[1760174272452,4.95978223,3833.5,3831.5,2.60993844]
[1760174272648,4.95978223,3833.5,3831.3,1.92]
[1760174272871,4.95978223,3833.5,3831.4,3.2435484]
[1760174273183,4.95978223,3833.5,3831.7,0.6336]
[1760174273686,4.95978223,3833.5,3831.6,0.6336]
[1760174273878,4.95978223,3833.5,3832.0,0.6336]
[1760174274459,4.95978223,3833.5,3831.7,2.60980722]
[1760174274661,4.95978223,3833.5,3831.4,0.6336]
[1760174274983,4.95978223,3833.5,3832.0,0.6336]
[1760174275183,4.95978223,3833.5,3832.2,0.6336]
[1760174275391,4.95978223,3833.5,3832.4,0.6336]
[1760174275569,4.95978223,3833.5,3832.7,0.6336]
[1760174276074,4.95978223,3833.5,3832.9,0.6336]
[1760174276390,2.3512,3833.5,3832.6,0.002]
[1760174276612,4.95978223,3833.5,3832.7,0.6336]
[1760174276766,2.3512,3833.5,3832.7,0.6336]
[1760174277089,2.60850528,3833.7,3833.0,3.2425218]
[1760174277454,0.4494,3833.7,3833.1,0.02128561]
[1760174277676,0.4494,3833.7,3833.4,0.6356]
[1760174277677,0.001,3833.7,3833.4,0.6356]
[1760174277898,0.001,3833.7,3833.5,0.65968581]
[1760174278080,0.001,3833.7,3833.5,0.02608581]
[1760174278276,0.001,3833.7,3833.6,0.6336]
[1760174278459,0.001,3833.7,3833.5,0.02608581]
[1760174278460,0.001,3833.7,3833.5,0.65968581]
[1760174278814,0.001,3833.7,3833.6,3.24211419]
[1760174278957,0.001,3833.7,3833.6,3.70821419]
[1760174280562,0.001,3833.7,3833.6,0.6336]
[1760174280773,0.001,3833.7,3833.6,3.24211419]
[1760174280974,0.001,3833.7,3833.6,0.6336]
[1760174281357,0.001,3833.7,3833.6,0.1304]
[1760174281978,0.001,3833.7,3833.6,3.20501419]
[1760174282184,0.001,3833.7,3833.6,3.83861419]
[1760174282581,0.001,3833.7,3833.6,0.764]
[1760174282769,0.001,3834.1,3833.6,2.684]
[1760174282973,0.001,3834.1,3834.0,3.24184204]
[1760174283182,0.001,3834.1,3834.0,3.70794204]
[1760174283388,0.001,3834.1,3834.0,3.73402446]
[1760174283679,0.001,3834.1,3834.0,5.62794204]
[1760174286761,0.001,3834.5,3834.4,2.60796995]
[1760174287013,0.001,3834.5,3834.4,5.16156995]
[1760174287182,0.001,3834.5,3834.4,5.62766995]
[1760174288399,0.001,3834.5,3834.4,3.70766995]
[1760174288572,0.001,3834.5,3834.4,1.0997]
[1760174288790,0.001,3834.5,3833.4,0.4681]
[1760174288998,0.001,3834.5,3833.4,0.002]
[1760174289213,0.4494,3834.5,3833.4,0.002]
[1760174289413,0.4494,3834.5,3833.5,0.4661]
[1760174289414,0.001,3834.5,3833.5,0.4661]
[1760174289615,0.001,3834.5,3834.1,3.24176491]
[1760174289790,0.001,3834.5,3834.4,3.41826995]
[1760174290220,0.001,3834.5,3834.4,3.88436995]
[1760174290687,0.001,3834.5,3834.4,0.8103]
[1760174291015,0.001,3834.5,3834.4,3.70766995]
[1760174291215,0.001,3834.5,3834.4,3.73374964]
[1760174291583,2.60696897,3835.9,3835.2,0.6336]
[1760174291890,2.60781535,3836.1,3835.2,0.6336]
[1760174291891,0.001,3836.1,3835.2,3.24102594]
[1760174292099,0.001,3836.1,3835.2,3.70712594]
[1760174292298,0.001,3836.1,3835.2,3.73174694]
[1760174292911,0.001,3836.1,3835.2,3.86134694]
[1760174293626,2.60784373,3836.1,3835.2,3.86134694]
[1760174293932,0.001,3836.1,3835.2,3.86134694]
[1760174294390,2.60782598,3836.1,3835.2,3.86134694]
[1760174294929,2.60695247,3835.9,3835.2,1.2293]
[1760174295290,0.4484,3836.0,3835.2,0.1296]
[1760174295524,0.1296,3836.0,3835.2,0.1296]
[1760174295708,2.60700824,3835.9,3835.2,0.1296]
[1760174295891,0.001,3836.1,3835.2,3.86280019]
[1760174296498,0.1306,3836.5,3835.2,3.86280019]
[1760174296499,0.001,3836.5,3835.8,0.6336]
[1760174296701,0.001,3836.5,3835.6,2.5536]
[1760174296702,0.001,3836.5,3836.4,5.16021036]
[1760174297199,0.001,3836.5,3836.4,5.62631036]
[1760174297421,0.001,3836.5,3836.4,3.70631036]
[1760174298498,0.001,3836.5,3836.4,0.6336]
[1760174299323,0.001,3836.5,3836.4,3.24021036]
[1760174299811,0.001,3836.5,3836.4,0.6336]
[1760174300224,2.60667194,3836.4,3835.4,2.60726296]
[1760174300539,0.4443,3836.5,3835.0,0.4573]
[1760174300700,0.4443,3836.5,3834.6,0.4573]
[1760174300701,0.4433,3836.4,3834.6,0.4573]
[1760174301019,0.4433,3836.3,3834.7,2.60776492]
[1760174301204,0.4433,3836.2,3834.6,0.4573]
[1760174301408,0.4433,3836.2,3834.9,2.60761791]
[1760174301620,2.60695594,3835.9,3835.0,0.6336]
[1760174301827,2.60695594,3835.9,3835.0,3.24114357]
[1760174302125,2.60702447,3835.8,3834.6,0.4573]
[1760174302331,3.05007802,3836.2,3835.1,0.6336]
[1760174302627,0.4433,3836.2,3834.6,0.4573]
[1760174302798,2.60676868,3836.2,3834.7,0.4573]
[1760174302994,2.60676868,3836.2,3835.4,2.60727024]
[1760174303195,2.6068677,3836.1,3835.5,0.65967221]
[1760174303428,0.001,3836.5,3835.5,0.02607221]
[1760174303597,0.001,3836.5,3835.8,0.6336]
[1760174303808,0.001,3836.5,3835.9,0.6336]
[1760174304227,0.001,3836.5,3836.3,0.6336]
[1760174304707,0.001,3836.5,3836.4,1.0909]
[1760174305130,0.001,3836.5,3836.4,0.6336]
[1760174305535,3.05084242,3836.5,3836.4,0.6336]
[1760174306506,0.001,3836.5,3836.4,0.6336]
[1760174307106,0.001,3836.5,3836.4,0.7632]
[1760174309141,0.001,3836.5,3836.4,3.82711036]
[1760174309441,0.001,3836.5,3836.4,1.2205]
[1760174309749,0.001,3836.5,3836.4,3.82711036]
[1760174310738,0.001,3836.5,3836.4,3.85317646]
[1760174311244,0.001,3836.5,3836.4,3.69751036]
[1760174311737,0.001,3836.9,3836.8,3.23993861]
[1760174311939,0.001,3836.9,3836.8,3.26600199]
[1760174312237,0.001,3836.9,3836.8,5.64330199]
[1760174312438,0.001,3836.9,3836.8,5.61723861]
[1760174314210,0.001,3836.9,3836.8,28.86225761]
[1760174314418,0.001,3838.2,3838.1,3.23905582]
[1760174314813,0.001,3838.2,3838.1,3.87005582]
[1760174318949,0.001,3838.6,3838.5,3.23878431]
[1760174319665,0.001,3838.6,3838.5,3.69608431]
[1760174319987,0.001,3838.6,3838.5,3.23878431]
[1760174321032,0.001,3838.6,3838.5,3.36838431]
[1760174321228,0.001,3838.6,3838.5,0.7632]
[1760174321429,0.001,3838.6,3838.5,0.1296]
[1760174322333,0.001,3838.6,3838.5,0.7632]
[1760174323966,0.001,3838.6,3838.5,0.78925184]
[1760174324346,0.001,3838.6,3838.5,0.7632]
[1760174324872,0.001,3838.6,3837.4,0.1737]
[1760174324873,0.47,3838.6,3837.4,0.1737]
[1760174325170,2.60532006,3838.3,3838.2,0.1296]
[1760174325372,0.001,3838.6,3838.3,0.6336]
[1760174325540,0.001,3838.6,3838.4,0.1296]
[1760174325742,3.07418431,3838.5,3838.4,0.7632]
[1760174326149,2.60525218,3838.4,3837.1,0.1737]
[1760174326373,2.60525218,3838.4,3838.1,0.1296]
[1760174326374,2.60538794,3838.2,3838.1,0.1296]
[1760174326704,0.1296,3838.1,3837.5,0.1296]
[1760174326866,2.60572738,3837.7,3837.6,0.6336]
[1760174327065,2.60579528,3837.6,3837.5,0.1296]
[1760174327281,3.04859528,3837.6,3837.5,0.1296]
[1760174327464,2.60589267,3837.5,3836.8,2.60632585]
[1760174327658,2.60533222,3838.3,3836.9,3.23987068]
[1760174327659,0.4428,3838.3,3836.9,3.23987068]
[1760174327881,0.4428,3838.3,3836.4,0.1737]
[1760174327882,2.60552783,3838.0,3837.6,0.6336]
[1760174328058,0.1296,3838.4,3837.8,0.1296]
[1760174328263,0.1296,3838.4,3837.7,0.6336]
[1760174328264,2.60565949,3837.8,3837.7,0.6336]
[1760174328460,3.04845949,3837.8,3837.7,0.6336]
[1760174329003,0.4428,3838.2,3836.5,0.6336]
[1760174329208,2.60560168,3837.9,3837.6,0.6336]
[1760174329513,2.60546624,3838.1,3837.7,0.02605727]
[1760174329663,2.60546624,3838.1,3837.9,0.6336]
[1760174330023,2.60533336,3838.3,3837.9,0.6336]
[1760174330195,2.6053974,3838.2,3837.9,0.6336]
[1760174330494,2.73485239,3838.4,3837.9,0.6336]
[1760174330495,3.04831179,3838.1,3837.9,0.6336]
[1760174330694,3.04831179,3838.1,3837.8,0.1296]
[1760174330695,2.60552371,3838.0,3837.8,0.1296]
[1760174330903,2.60552371,3838.0,3836.7,1.92]
[1760174330904,0.2333,3837.9,3836.7,1.92]
[1760174331201,2.60567598,3837.8,3837.1,0.6336]
[1760174331409,0.2333,3837.9,3837.1,0.6336]
[1760174331566,2.83894273,3837.9,3837.2,0.6336]
[1760174331967,2.60566545,3837.8,3837.2,0.6336]
[1760174332504,2.60600085,3837.3,3836.9,0.002]
[1760174332900,3.04880085,3837.3,3836.9,0.002]
[1760174333206,3.04888341,3837.2,3836.9,0.002]
[1760174333567,0.2333,3837.9,3836.9,0.002]
[1760174333568,3.04893877,3837.1,3836.9,0.002]
[1760174333772,0.4428,3837.5,3836.9,0.002]
[1760174334100,2.60598916,3837.4,3836.9,0.002]
[1760174334623,3.04878916,3837.4,3836.9,0.002]
[1760174335893,0.4428,3838.0,3837.0,0.6336]
[1760174336419,2.3628,3838.0,3837.1,0.02606134]
[1760174336579,2.60559159,3837.9,3837.1,0.02606134]
[1760174337018,0.4428,3838.0,3836.9,3.04476106]
[1760174337312,2.60577682,3837.7,3837.0,0.6336]
[1760174337553,2.60565761,3837.9,3837.0,0.6336]
[1760174337812,0.4428,3838.0,3837.2,0.6336]
[1760174338110,0.4428,3838.0,3836.9,0.4385]
[1760174338111,2.60565032,3837.9,3837.1,3.23972632]
[1760174338405,2.60554138,3838.0,3837.3,0.6336]
[1760174338707,1.92,3838.0,3837.3,3.23958329]
[1760174338921,2.60537703,3838.3,3837.6,0.6336]
[1760174339219,2.60538916,3838.2,3837.6,0.6336]
[1760174339394,2.60533098,3838.3,3837.6,0.6336]
[1760174339589,0.001,3838.5,3837.6,0.6336]
[1760174339804,2.60538888,3838.2,3837.5,0.6336]
[1760174339990,2.6054671,3838.1,3837.5,0.6336]
[1760174340797,0.001,3838.5,3838.1,0.6336]
[1760174341004,0.001,3838.5,3838.4,0.7632]
[1760174341399,0.001,3838.5,3838.4,0.78925251]
[1760174341599,0.001,3838.5,3838.4,3.39450469]
[1760174341832,0.001,3838.5,3838.4,3.83100469]
[1760174342038,0.001,3838.5,3838.4,0.78925251]
[1760174342344,3.04898431,3838.5,3838.4,0.6336]
[1760174342627,0.001,3838.5,3838.4,0.6336]
[1760174342829,3.04898431,3838.5,3838.4,0.6336]
[1760174343796,0.001,3838.5,3838.4,0.6336]
[1760174344247,0.001,3838.5,3838.4,3.23885218]
[1760174344603,0.001,3838.5,3838.4,0.65965251]
[1760174344928,0.001,3838.5,3838.4,3.26490469]
[1760174345100,0.001,3838.5,3838.4,0.65965251]
[1760174345626,0.001,3838.5,3838.4,3.26490469]
[1760174347044,0.001,3838.5,3838.4,3.70140469]
[1760174347841,0.001,3838.5,3838.4,3.67535218]
[1760174348006,0.001,3838.5,3838.4,3.23885218]
[1760174348631,0.001,3838.5,3838.4,0.6336]
[1760174349063,0.001,3838.5,3838.4,3.67535218]
[1760174349559,0.001,3838.5,3838.4,3.23885218]
[1760174350077,0.001,3838.5,3838.4,3.67535218]
[1760174350421,0.001,3838.5,3838.4,3.23885218]
[1760174350631,0.001,3838.5,3838.4,0.6336]
[1760174351045,0.001,3838.5,3838.0,2.60551302]
[1760174351253,0.001,3838.5,3837.9,0.002]
[1760174351469,2.60537808,3838.3,3837.9,0.002]
[1760174351628,2.6052564,3838.4,3837.9,0.002]
[1760174351828,3.04900298,3838.5,3837.9,0.002]
[1760174352131,0.4428,3838.4,3837.9,0.002]
[1760174352341,3.0480701,3838.4,3838.0,0.1296]
[1760174352636,3.0480701,3838.4,3838.1,0.6336]
[1760174352637,2.60538794,3838.2,3838.1,0.6336]
[1760174352836,0.001,3838.5,3838.1,0.6336]
[1760174353153,0.001,3838.5,3838.4,3.36845218]
[1760174353376,0.001,3838.5,3838.4,3.80495218]
[1760174353948,0.001,3838.5,3838.4,3.36845218]
[1760174354266,0.001,3838.5,3838.4,0.7632]
[1760174354569,0.001,3838.5,3838.4,3.36845218]
[1760174355762,0.001,3838.5,3838.4,0.7632]
[1760174356234,0.001,3838.5,3838.4,3.36845218]
[1760174356565,0.001,3838.5,3838.4,3.82891073]
[1760174357141,0.001,3838.6,3838.5,5.15878431]
[1760174357350,0.001,3838.6,3838.5,5.62988431]
[1760174360505,0.001,3839.4,3838.9,5.15851286]
[1760174361094,0.001,3839.4,3838.9,5.75921286]
[1760174362862,0.001,3839.4,3838.9,2.0496]
[1760174363071,0.001,3839.4,3838.9,0.1296]
[1760174363265,2.60560174,3839.4,3838.9,0.1296]
[1760174363469,0.001,3839.4,3838.9,0.1296]
[1760174363664,2.60569645,3839.3,3838.9,0.7632]
[1760174363930,3.05779645,3839.3,3838.9,0.7632]
[1760174364083,3.05779645,3839.3,3838.9,0.1296]
[1760174364291,2.60470954,3839.2,3838.9,0.1296]
[1760174364614,2.60470954,3839.2,3838.0,0.4711]
[1760174364615,0.4531,3839.0,3837.8,2.60565387]
[1760174364903,2.60521924,3838.5,3837.7,2.60567433]
[1760174365068,2.60526871,3838.4,3837.6,2.60579224]
[1760174365274,2.60526871,3838.4,3837.8,0.6336]
[1760174365469,0.4521,3838.3,3837.5,0.002]
[1760174365675,0.4521,3838.2,3837.5,2.60784831]
[1760174365898,0.4521,3838.2,3837.6,0.6336]
[1760174366099,2.60532256,3838.3,3837.6,2.5536]
[1760174366303,2.60532256,3838.3,3837.5,2.60784831]
[1760174366304,0.001,3839.0,3838.1,0.6336]
[1760174366503,2.60585967,3839.0,3838.1,0.6336]
[1760174366723,2.60511893,3838.6,3837.9,0.6356]
[1760174367011,2.60506107,3838.7,3837.9,3.24118365]
[1760174367219,2.60506958,3838.7,3838.1,0.6336]
[1760174367385,2.60498675,3838.8,3838.1,0.6336]
[1760174367586,0.001,3839.0,3837.9,0.002]
[1760174367587,0.4521,3838.7,3837.9,0.002]
[1760174367993,0.001,3839.0,3837.9,0.002]
[1760174368331,0.001,3839.0,3838.9,3.23851286]
[1760174368545,0.001,3839.0,3838.9,0.6336]
[1760174369027,3.05794501,3839.0,3838.9,0.6336]
[1760174369895,3.05794501,3839.0,3837.9,0.002]
[1760174369896,2.60493751,3838.9,3837.9,0.002]
[1760174370093,0.4531,3839.0,3837.9,0.002]
[1760174370297,2.60491286,3838.9,3838.0,2.60546444]
[1760174370498,2.60498627,3838.8,3838.0,2.60546444]
[1760174370802,0.001,3839.0,3838.4,2.60524643]
[1760174371028,0.001,3839.0,3838.5,0.6336]
[1760174371710,0.001,3839.0,3838.0,0.4711]
[1760174371711,0.001,3839.0,3838.2,0.6336]
[1760174371935,3.05703168,3838.9,3838.2,0.6336]
[1760174372233,0.4521,3838.9,3838.2,0.6336]
[1760174372435,0.4521,3838.8,3838.0,0.6336]
[1760174372601,0.4521,3838.8,3838.0,3.23911531]
[1760174373129,0.4521,3838.8,3838.0,0.6336]
[1760174373337,0.4521,3838.8,3838.1,0.00745839]
[1760174373537,0.4521,3838.8,3837.9,0.002]
[1760174373538,3.05713464,3838.8,3837.9,0.002]
[1760174373709,0.4521,3838.8,3837.9,0.002]
[1760174373916,2.60511957,3838.6,3837.9,0.002]
[1760174374108,2.60505864,3838.7,3837.9,0.002]
[1760174374313,0.4521,3838.8,3838.1,0.6336]
[1760174374529,0.4521,3838.8,3838.4,0.6336]
[1760174374839,0.001,3839.0,3838.7,0.6336]
[1760174375416,0.4521,3838.9,3838.7,0.6336]
[1760174375616,0.4521,3838.8,3838.7,0.6336]
[1760174376150,3.05708072,3838.8,3838.7,0.6336]
[1760174376306,2.60513701,3838.6,3838.4,0.6336]
[1760174376907,0.4521,3838.5,3838.4,0.6336]
[1760174377842,0.1306,3839.0,3838.4,0.6336]
[1760174378049,3.05796404,3839.0,3838.5,0.64038157]
[1760174378216,2.60586404,3839.0,3838.5,0.6336]
[1760174378424,3.05701636,3838.9,3838.5,0.6336]
[1760174378744,0.001,3839.0,3838.2,3.23898794]
[1760174378973,0.001,3839.0,3838.8,0.6336]
[1760174379244,0.001,3839.0,3838.9,3.23851286]
[1760174379532,0.001,3839.0,3838.9,3.36811286]
[1760174379936,0.001,3839.0,3838.9,3.83921286]
[1760174380442,0.001,3839.0,3838.9,3.86526198]
[1760174381140,0.001,3839.0,3838.9,5.78526198]
[1760174381349,0.001,3839.0,3838.9,5.75921286]
[1760174383049,0.001,3839.3,3839.2,3.23830931]
[1760174383363,0.001,3839.3,3839.2,3.25931661]
[1760174383551,0.001,3839.3,3839.2,3.84211661]
[1760174384571,0.001,3839.3,3839.2,3.82110931]
[1760174386979,3.05445837,3840.9,3840.1,3.23767353]
[1760174387380,1.921,3841.6,3839.7,0.6336]
[1760174387381,0.001,3841.6,3839.7,0.6336]
[1760174387546,3.06365537,3841.5,3840.5,0.6336]
[1760174387748,2.60321757,3841.4,3840.5,0.6336]
[1760174388072,3.06365315,3841.5,3840.7,3.23727716]
[1760174388276,0.4605,3841.5,3840.7,2.60369203]
[1760174388478,0.4605,3841.5,3840.8,3.23720877]
[1760174388645,0.4605,3841.5,3840.9,2.60354774]
[1760174388848,0.001,3841.6,3841.0,0.6336]
[1760174389073,0.001,3841.6,3841.1,0.6336]
[1760174389254,0.001,3841.6,3841.2,0.01047124]
[1760174389458,0.001,3841.6,3841.1,0.6336]
[1760174389643,0.001,3841.6,3841.2,0.01123132]
[1760174389976,2.60411248,3841.6,3841.2,0.02603353]
[1760174390145,2.60411248,3841.6,3840.9,0.6336]
[1760174390676,0.4605,3841.5,3840.3,0.6336]
[1760174390982,2.60351119,3841.0,3840.4,0.6336]
[1760174391273,0.001,3841.6,3840.3,0.6336]
[1760174391274,3.06385311,3841.2,3840.3,0.6336]
[1760174391474,0.4605,3841.2,3840.3,0.6336]
[1760174391644,2.6032808,3841.4,3840.6,0.6336]
[1760174391847,2.6032808,3841.4,3840.6,3.23733923]
[1760174392375,2.60409805,3841.6,3840.8,3.23715775]
[1760174392980,2.60316749,3841.5,3840.8,0.6336]
[1760174393475,0.001,3841.6,3840.9,0.6336]
[1760174393679,0.001,3841.6,3840.8,0.6336]
[1760174394000,2.60411154,3841.6,3840.8,2.60362402]
[1760174394180,0.2328,3841.5,3840.2,0.4701]
[1760174394352,3.06459076,3841.6,3840.8,2.60359981]
[1760174394553,2.60314981,3841.5,3840.9,0.6336]
[1760174395048,2.60314981,3841.5,3840.2,0.4701]
[1760174395049,0.4615,3841.6,3840.8,0.6336]
[1760174395352,0.001,3841.6,3841.0,0.6336]
[1760174395555,2.6032062,3841.5,3840.8,0.6336]
[1760174396291,2.60323091,3841.4,3840.8,0.6336]
[1760174396473,2.60350953,3841.0,3839.8,2.60429876]
[1760174396650,2.60352931,3841.0,3840.2,2.60400792]
[1760174396848,2.60335311,3841.2,3840.8,0.6336]
[1760174396849,2.60355784,3840.9,3840.8,0.6336]
[1760174397054,2.60346834,3841.1,3840.8,0.6336]
[1760174397377,0.001,3841.6,3840.7,0.6336]
[1760174397760,0.2156,3842.1,3841.1,0.6336]
[1760174397961,11.32,3847.4,3839.9,0.1687]
[1760174397962,0.2328,3845.4,3842.8,0.6336]
[1760174398193,0.13622891,3844.4,3843.0,0.6336]
[1760174398405,0.13622891,3844.4,3840.6,1.27253113]
[1760174398406,2.83488887,3843.1,3841.3,2.60328534]
[1760174398700,2.60226541,3842.9,3841.9,0.6336]
[1760174398871,0.4605,3843.0,3842.0,0.02602811]
[1760174399073,0.2328,3843.1,3842.1,0.6336]
[1760174399384,0.2328,3843.4,3842.1,0.6336]
[1760174399559,0.2328,3843.4,3842.6,0.6336]
[1760174399964,0.2328,3843.7,3843.1,0.6336]
[1760174400165,0.4605,3844.1,3843.3,0.6336]
[1760174400359,0.4605,3844.1,3842.8,0.6336]
[1760174400593,2.60106267,3844.6,3842.8,0.6336]
[1760174400594,0.4605,3844.6,3843.7,0.6336]
[1760174400759,0.4605,3844.6,3843.4,0.6336]
[1760174401089,2.60122945,3844.4,3844.0,0.6336]
[1760174401277,3.06179043,3844.3,3842.7,1.1037]
[1760174401509,0.4605,3844.2,3842.4,0.78274925]
[1760174401685,2.60078023,3845.0,3842.8,0.6336]
[1760174401686,2.60172407,3843.7,3842.8,0.6336]
[1760174401895,3.29503649,3843.6,3842.6,0.6336]
[1760174402064,0.6933,3843.6,3842.6,0.6336]
[1760174402269,2.60136033,3844.2,3842.1,0.4701]
[1760174402270,0.2328,3843.9,3843.1,0.6336]
[1760174402465,0.4605,3844.0,3843.0,0.6336]
[1760174402765,0.4605,3844.0,3843.0,3.2357335]
[1760174402965,3.06196011,3844.0,3843.2,0.6336]
[1760174403191,2.60166134,3843.7,3842.9,0.6336]
[1760174403392,2.60173532,3843.6,3842.9,0.6336]
[1760174403693,3.29483293,3843.9,3842.3,0.4701]
[1760174403694,0.2328,3843.9,3842.8,0.6336]
[1760174403898,0.2328,3843.9,3842.7,1.92]
[1760174403899,0.4605,3843.5,3840.6,1.27453113]
[1760174404083,0.4605,3843.4,3840.7,0.4701]
[1760174404286,1.92,3843.1,3840.7,0.78305163]
[1760174404485,2.60301995,3841.7,3840.6,0.002]
[1760174404673,1.92,3842.8,3840.7,0.4701]
[1760174404873,0.4605,3842.7,3840.6,0.002]
[1760174405071,2.60312282,3841.6,3840.6,0.002]
[1760174405267,0.4605,3842.7,3840.6,0.002]
[1760174405268,2.60322478,3841.4,3840.6,0.002]
[1760174405667,0.6933,3841.5,3840.6,0.002]
[1760174405909,0.4605,3841.8,3840.6,0.002]
[1760174406075,0.4605,3841.8,3840.7,2.60363101]
[1760174406410,3.06350746,3841.8,3840.8,2.62333659]
[1760174406576,2.60309319,3841.6,3840.8,0.01972095]
[1760174406931,0.4605,3841.8,3840.8,0.01972095]
[1760174407072,0.4605,3841.8,3841.0,0.6336]
[1760174407271,0.4605,3841.8,3840.9,2.60355645]
[1760174407272,0.4605,3841.8,3841.4,0.6336]
[1760174407775,2.60309689,3841.6,3840.6,0.002]